[Event "Titled Tuesday Blitz November 15 Early 2022"]
[White "Bommini, Mounika Akshaya"]
[Black "Mladenovic, Stefan"]
[WhiteFideId "25019872"]
[BlackFideId "942227"]
[WhiteElo "2060"]
[BlackElo "2337"]
[Result "0-1"]
[Round "01"]
[TimeControl "180+1"]
[Date "2022.11.16"]
[WhiteClock "0:00:38"]
[BlackClock "0:01:22"]

1. e4 {[%clk 0:02:58]}  c5 {[%clk 0:02:46]} 2. Nc3 {[%clk 0:02:58]}  g6 {[%clk 0:02:34]} 3. g3 {[%clk 0:02:59]}  Bg7 {[%clk 0:02:30]} 4. Bg2 {[%clk 0:02:59]}  Nc6 {[%clk 0:02:28]} 5. d3 {[%clk 0:03:00]}  d6 {[%clk 0:02:28]} 6. Be3 {[%clk 0:02:59]}  Nf6 {[%clk 0:02:29]} 7. h3 {[%clk 0:02:57]}  O-O {[%clk 0:02:28]} 8. Qd2 {[%clk 0:02:58]}  Re8 {[%clk 0:02:28]} 9. Nge2 {[%clk 0:02:56]}  Rb8 {[%clk 0:02:25]} 10. Bh6 {[%clk 0:02:50]}  Bh8 {[%clk 0:02:22]} 11. O-O {[%clk 0:02:46]}  b5 {[%clk 0:02:21]} 12. Nd1 {[%clk 0:02:46]}  b4 {[%clk 0:02:20]} 13. Qe3 {[%clk 0:02:44]}  Nd7 {[%clk 0:02:19]} 14. c3 {[%clk 0:02:39]}  bxc3 {[%clk 0:02:18]} 15. bxc3 {[%clk 0:02:32]}  Ba6 {[%clk 0:02:19]} 16. Qd2 {[%clk 0:02:29]}  Qa5 {[%clk 0:02:18]} 17. Ne3 {[%clk 0:02:26]}  Nde5 {[%clk 0:02:16]} 18. Nf4 {[%clk 0:02:03]}  Nxd3 {[%clk 0:01:55]} 19. Nxd3 {[%clk 0:01:58]}  Bxc3 {[%clk 0:01:56]} 20. Qd1 {[%clk 0:01:36]}  Bxa1 {[%clk 0:01:54]} 21. Qxa1 {[%clk 0:01:35]}  Nd4 {[%clk 0:01:55]} 22. Rd1 {[%clk 0:01:27]}  Qa3 {[%clk 0:01:53]} 23. Nc2 {[%clk 0:01:01]}  Qxd3 {[%clk 0:01:35]} 24. Rxd3 {[%clk 0:00:57]}  Bxd3 {[%clk 0:01:33]} 25. Na3 {[%clk 0:00:44]}  Rb6 {[%clk 0:01:24]} 26. Qc3 {[%clk 0:00:38]}  Ne2+ {[%clk 0:01:22]} 0-1


[Site "https://www.chess.com"]

[Event "Titled Tuesday Blitz November 15 Early 2022"]
[White "Boros, Denes"]
[Black "Heinemann, Josefine"]
[WhiteFideId "722340"]
[BlackFideId "12900460"]
[WhiteElo "2464"]
[BlackElo "2300"]
[Result "1-0"]
[Round "01"]
[TimeControl "180+1"]
[Date "2022.11.16"]
[WhiteClock "0:02:01"]
[BlackClock "0:00:57"]

1. d4 {[%clk 0:03:00]}  d5 {[%clk 0:02:57]} 2. Nc3 {[%clk 0:03:01]}  Nf6 {[%clk 0:02:55]} 3. Nf3 {[%clk 0:03:02]}  c5 {[%clk 0:02:54]} 4. Bg5 {[%clk 0:03:02]}  cxd4 {[%clk 0:02:48]} 5. Bxf6 {[%clk 0:03:02]}  gxf6 {[%clk 0:02:46]} 6. Qxd4 {[%clk 0:03:01]}  Nc6 {[%clk 0:02:46]} 7. Qxd5 {[%clk 0:02:55]}  Be6 {[%clk 0:02:24]} 8. Qb5 {[%clk 0:02:47]}  Qc7 {[%clk 0:01:21]} 9. Nd4 {[%clk 0:02:29]}  Bd7 {[%clk 0:01:13]} 10. Nd5 {[%clk 0:02:07]}  Qd6 {[%clk 0:00:58]} 11. Qxb7 {[%clk 0:02:04]}  Rb8 {[%clk 0:00:57]} 12. Nc7+ {[%clk 0:02:01]} 1-0


[Site "https://www.chess.com"]

[Event "Titled Tuesday Blitz November 15 Early 2022"]
[White "Calcada, Lucas Galvan"]
[Black "Donskov, Anatoly"]
[WhiteFideId "22746099"]
[BlackFideId "24143413"]
[WhiteElo "1523"]
[BlackElo "2219"]
[Result "0-1"]
[Round "01"]
[TimeControl "180+1"]
[Date "2022.11.16"]
[WhiteClock "0:00:11"]
[BlackClock "0:00:04"]

1. d4 {[%clk 0:02:59]}  d5 {[%clk 0:02:59]} 2. c4 {[%clk 0:02:58]}  dxc4 {[%clk 0:02:59]} 3. Nf3 {[%clk 0:02:58]}  Nf6 {[%clk 0:02:58]} 4. Bg5 {[%clk 0:02:54]}  Ne4 {[%clk 0:02:56]} 5. Bf4 {[%clk 0:02:50]}  e6 {[%clk 0:02:52]} 6. e3 {[%clk 0:02:50]}  Bb4+ {[%clk 0:02:33]} 7. Nfd2 {[%clk 0:02:49]}  Nxd2 {[%clk 0:02:27]} 8. Nxd2 {[%clk 0:02:48]}  c3 {[%clk 0:02:27]} 9. bxc3 {[%clk 0:02:45]}  Bxc3 {[%clk 0:02:28]} 10. Rc1 {[%clk 0:02:45]}  Bxd2+ {[%clk 0:02:21]} 11. Qxd2 {[%clk 0:02:46]}  c6 {[%clk 0:02:16]} 12. Qb4 {[%clk 0:02:42]}  Nd7 {[%clk 0:02:06]} 13. a4 {[%clk 0:02:40]}  Nb6 {[%clk 0:02:02]} 14. Qa3 {[%clk 0:02:38]}  Nd5 {[%clk 0:02:01]} 15. Bd6 {[%clk 0:02:21]}  Qa5+ {[%clk 0:02:00]} 16. Ke2 {[%clk 0:02:21]}  h5 {[%clk 0:01:34]} 17. e4 {[%clk 0:02:20]}  Nf6 {[%clk 0:01:34]} 18. f3 {[%clk 0:02:17]}  h4 {[%clk 0:01:32]} 19. Rc5 {[%clk 0:01:54]}  Qd8 {[%clk 0:01:26]} 20. e5 {[%clk 0:01:53]}  Nd5 {[%clk 0:01:25]} 21. Kf2 {[%clk 0:01:53]}  Qg5 {[%clk 0:01:16]} 22. Be2 {[%clk 0:01:34]}  Nf4 {[%clk 0:01:04]} 23. Rg1 {[%clk 0:01:29]}  Nd5 {[%clk 0:00:16]} 24. a5 {[%clk 0:01:21]}  f5 {[%clk 0:00:16]} 25. a6 {[%clk 0:01:19]}  Kf7 {[%clk 0:00:15]} 26. Rb1 {[%clk 0:01:12]}  b5 {[%clk 0:00:14]} 27. Rxc6 {[%clk 0:01:11]}  Bd7 {[%clk 0:00:14]} 28. Rc5 {[%clk 0:01:10]}  Nf4 {[%clk 0:00:14]} 29. Bf1 {[%clk 0:01:08]}  Rhc8 {[%clk 0:00:13]} 30. Rbc1 {[%clk 0:01:05]}  Nd5 {[%clk 0:00:11]} 31. Bxb5 {[%clk 0:00:54]}  Qd2+ {[%clk 0:00:09]} 32. Kg1 {[%clk 0:00:54]}  Bxb5 {[%clk 0:00:05]} 33. h3 {[%clk 0:00:35]}  Ne3 {[%clk 0:00:04]} 34. Rc7+ {[%clk 0:00:29]}  Rxc7 {[%clk 0:00:04]} 35. Rxc7+ {[%clk 0:00:29]}  Kg6 {[%clk 0:00:04]} 36. Qxe3 {[%clk 0:00:11]}  Qxe3+ {[%clk 0:00:04]} 37. Kh2 {[%clk 0:00:12]}  Qf2 {[%clk 0:00:05]} 38. Bf8 {[%clk 0:00:11]}  Rxf8 {[%clk 0:00:04]} 39. Rxa7 {[%clk 0:00:11]}  Bf1 {[%clk 0:00:04]} 0-1


[Site "https://www.chess.com"]

[Event "Titled Tuesday Blitz November 15 Early 2022"]
[White "Cheparinov, Ivan"]
[Black "Fiedorek, Michal"]
[WhiteFideId "2905540"]
[BlackFideId "1199528"]
[WhiteElo "2622"]
[BlackElo "2201"]
[Result "1-0"]
[Round "01"]
[TimeControl "180+1"]
[Date "2022.11.16"]
[WhiteClock "0:00:33"]
[BlackClock "0:00:11"]

1. e4 {[%clk 0:02:57]}  c5 {[%clk 0:02:51]} 2. Nf3 {[%clk 0:02:57]}  Nc6 {[%clk 0:02:51]} 3. d4 {[%clk 0:02:56]}  cxd4 {[%clk 0:02:51]} 4. Nxd4 {[%clk 0:02:57]}  g6 {[%clk 0:02:51]} 5. Nc3 {[%clk 0:02:57]}  Bg7 {[%clk 0:02:50]} 6. Be3 {[%clk 0:02:57]}  Nf6 {[%clk 0:02:50]} 7. Bc4 {[%clk 0:02:57]}  O-O {[%clk 0:02:49]} 8. Bb3 {[%clk 0:02:57]}  a5 {[%clk 0:02:48]} 9. O-O {[%clk 0:02:55]}  a4 {[%clk 0:02:47]} 10. Nxa4 {[%clk 0:02:55]}  Nxe4 {[%clk 0:02:47]} 11. Nb5 {[%clk 0:02:53]}  Ra6 {[%clk 0:02:46]} 12. c4 {[%clk 0:02:40]}  d6 {[%clk 0:02:44]} 13. Re1 {[%clk 0:02:34]}  Nf6 {[%clk 0:02:34]} 14. h3 {[%clk 0:02:19]}  Be6 {[%clk 0:02:31]} 15. Qe2 {[%clk 0:02:01]}  Nd7 {[%clk 0:02:12]} 16. Rad1 {[%clk 0:01:55]}  Qc8 {[%clk 0:01:54]} 17. Rc1 {[%clk 0:01:35]}  Re8 {[%clk 0:01:25]} 18. Red1 {[%clk 0:01:32]}  Nce5 {[%clk 0:01:17]} 19. Nd4 {[%clk 0:01:29]}  Nc5 {[%clk 0:01:01]} 20. Nxe6 {[%clk 0:01:17]}  Nxe6 {[%clk 0:00:59]} 21. c5 {[%clk 0:01:14]}  dxc5 {[%clk 0:00:45]} 22. Nxc5 {[%clk 0:01:05]}  Nxc5 {[%clk 0:00:43]} 23. Rxc5 {[%clk 0:01:05]}  Rc6 {[%clk 0:00:41]} 24. Rdc1 {[%clk 0:01:00]}  Rxc5 {[%clk 0:00:38]} 25. Rxc5 {[%clk 0:01:01]}  Qd7 {[%clk 0:00:37]} 26. Rd5 {[%clk 0:00:59]}  Qc8 {[%clk 0:00:22]} 27. Qb5 {[%clk 0:00:53]}  Nc6 {[%clk 0:00:20]} 28. Rc5 {[%clk 0:00:48]}  Qd7 {[%clk 0:00:18]} 29. Bd5 {[%clk 0:00:41]}  Rc8 {[%clk 0:00:15]} 30. a4 {[%clk 0:00:39]}  e6 {[%clk 0:00:15]} 31. Bxc6 {[%clk 0:00:35]}  Rxc6 {[%clk 0:00:13]} 32. Rxc6 {[%clk 0:00:35]}  bxc6 {[%clk 0:00:12]} 33. Qb8+ {[%clk 0:00:35]}  Bf8 {[%clk 0:00:11]} 34. Bc5 {[%clk 0:00:33]} 1-0


[Site "https://www.chess.com"]

[Event "Titled Tuesday Blitz November 15 Early 2022"]
[White "Chong, Kai Ni Agnes"]
[Black "Kleiman, Jake"]
[WhiteFideId "5722071"]
[BlackFideId "2020041"]
[WhiteElo "1762"]
[BlackElo "2606"]
[Result "0-1"]
[Round "01"]
[TimeControl "180+1"]
[Date "2022.11.16"]
[WhiteClock "0:00:10"]
[BlackClock "0:00:49"]

1. d4 {[%clk 0:02:59]}  Nf6 {[%clk 0:02:59]} 2. c4 {[%clk 0:02:59]}  e6 {[%clk 0:02:58]} 3. g3 {[%clk 0:02:58]}  Bb4+ {[%clk 0:02:58]} 4. Bd2 {[%clk 0:02:57]}  Bxd2+ {[%clk 0:02:59]} 5. Nxd2 {[%clk 0:02:57]}  O-O {[%clk 0:03:00]} 6. Bg2 {[%clk 0:02:56]}  d6 {[%clk 0:03:00]} 7. Ngf3 {[%clk 0:02:56]}  Qe7 {[%clk 0:03:01]} 8. O-O {[%clk 0:02:56]}  e5 {[%clk 0:03:02]} 9. e4 {[%clk 0:02:53]}  Bg4 {[%clk 0:03:01]} 10. Qc2 {[%clk 0:02:37]}  Bxf3 {[%clk 0:03:01]} 11. Nxf3 {[%clk 0:02:36]}  c5 {[%clk 0:03:00]} 12. dxe5 {[%clk 0:02:24]}  dxe5 {[%clk 0:02:59]} 13. Nh4 {[%clk 0:02:15]}  g6 {[%clk 0:02:58]} 14. f4 {[%clk 0:02:14]}  exf4 {[%clk 0:02:35]} 15. e5 {[%clk 0:00:54]}  Qxe5 {[%clk 0:02:23]} 16. Bxb7 {[%clk 0:00:49]}  Nbd7 {[%clk 0:01:54]} 17. Bxa8 {[%clk 0:00:45]}  Rxa8 {[%clk 0:01:54]} 18. gxf4 {[%clk 0:00:40]}  Qh5 {[%clk 0:01:48]} 19. Qg2 {[%clk 0:00:32]}  Re8 {[%clk 0:01:26]} 20. Nf3 {[%clk 0:00:20]}  Re4 {[%clk 0:01:17]} 21. Qg5 {[%clk 0:00:18]}  Rxc4 {[%clk 0:00:57]} 22. Rac1 {[%clk 0:00:15]}  Rxc1 {[%clk 0:00:55]} 23. Rxc1 {[%clk 0:00:13]}  Qxf3 {[%clk 0:00:55]} 24. Rf1 {[%clk 0:00:12]}  Qe3+ {[%clk 0:00:54]} 25. Kg2 {[%clk 0:00:11]}  Qe2+ {[%clk 0:00:49]} 26. Rf2 {[%clk 0:00:10]}  Qxf2+ {[%clk 0:00:49]} 0-1


[Site "https://www.chess.com"]

[Event "Titled Tuesday Blitz November 15 Early 2022"]
[White "Ciuffoletti, Paolo"]
[Black "Tristan, Leonardo"]
[WhiteFideId "807630"]
[BlackFideId "113816"]
[WhiteElo "2143"]
[BlackElo "2461"]
[Result "1/2-1/2"]
[Round "01"]
[TimeControl "180+1"]
[Date "2022.11.16"]
[WhiteClock "0:00:03"]
[BlackClock "0:00:57"]

1. e4 {[%clk 0:02:59]}  d5 {[%clk 0:02:59]} 2. exd5 {[%clk 0:02:58]}  Qxd5 {[%clk 0:02:59]} 3. Nc3 {[%clk 0:02:58]}  Qa5 {[%clk 0:02:59]} 4. d4 {[%clk 0:02:58]}  Nf6 {[%clk 0:02:59]} 5. Bc4 {[%clk 0:02:57]}  Bg4 {[%clk 0:02:58]} 6. f3 {[%clk 0:02:52]}  Bd7 {[%clk 0:02:58]} 7. Ne2 {[%clk 0:02:51]}  e6 {[%clk 0:02:58]} 8. O-O {[%clk 0:02:50]}  Be7 {[%clk 0:02:58]} 9. Ng3 {[%clk 0:02:42]}  O-O {[%clk 0:02:57]} 10. f4 {[%clk 0:02:33]}  Rd8 {[%clk 0:02:42]} 11. Qe2 {[%clk 0:02:07]}  Nc6 {[%clk 0:02:17]} 12. Be3 {[%clk 0:01:47]}  Bb4 {[%clk 0:02:03]} 13. Nce4 {[%clk 0:01:23]}  Nxe4 {[%clk 0:02:03]} 14. Nxe4 {[%clk 0:01:23]}  Bf8 {[%clk 0:01:58]} 15. f5 {[%clk 0:01:12]}  exf5 {[%clk 0:01:41]} 16. Ng5 {[%clk 0:01:09]}  Be8 {[%clk 0:01:41]} 17. Qh5 {[%clk 0:01:06]}  h6 {[%clk 0:01:41]} 18. Bxf7+ {[%clk 0:01:05]}  Bxf7 {[%clk 0:01:38]} 19. Qxf7+ {[%clk 0:01:03]}  Kh8 {[%clk 0:01:38]} 20. Rxf5 {[%clk 0:00:50]}  Qb4 {[%clk 0:01:31]} 21. Raf1 {[%clk 0:00:34]}  Qe7 {[%clk 0:01:15]} 22. Qxe7 {[%clk 0:00:14]}  Nxe7 {[%clk 0:01:16]} 23. Nf7+ {[%clk 0:00:13]}  Kg8 {[%clk 0:01:16]} 24. Nxd8 {[%clk 0:00:12]}  Nxf5 {[%clk 0:01:16]} 25. Rxf5 {[%clk 0:00:11]}  Rxd8 {[%clk 0:01:16]} 26. c3 {[%clk 0:00:10]}  c5 {[%clk 0:01:02]} 27. dxc5 {[%clk 0:00:09]}  Rd1+ {[%clk 0:01:03]} 28. Rf1 {[%clk 0:00:07]}  Rd3 {[%clk 0:01:02]} 29. Bd4 {[%clk 0:00:08]}  Rd2 {[%clk 0:01:03]} 30. Rf2 {[%clk 0:00:07]}  Rd1+ {[%clk 0:01:03]} 31. Rf1 {[%clk 0:00:08]}  Rd2 {[%clk 0:01:04]} 32. Rf2 {[%clk 0:00:08]}  Rd3 {[%clk 0:01:04]} 33. Rf3 {[%clk 0:00:08]}  Rxf3 {[%clk 0:00:54]} 34. gxf3 {[%clk 0:00:08]}  Kf7 {[%clk 0:00:55]} 35. Kf2 {[%clk 0:00:08]}  Ke6 {[%clk 0:00:55]} 36. Ke3 {[%clk 0:00:08]}  Kd5 {[%clk 0:00:55]} 37. b4 {[%clk 0:00:09]}  g5 {[%clk 0:00:50]} 38. Kd3 {[%clk 0:00:09]}  Ke6 {[%clk 0:00:45]} 39. c4 {[%clk 0:00:09]}  Kf5 {[%clk 0:00:45]} 40. b5 {[%clk 0:00:08]}  Kf4 {[%clk 0:00:45]} 41. c6 {[%clk 0:00:07]}  bxc6 {[%clk 0:00:46]} 42. bxc6 {[%clk 0:00:07]}  Bd6 {[%clk 0:00:46]} 43. Bxa7 {[%clk 0:00:07]}  Kxf3 {[%clk 0:00:47]} 44. Bb6 {[%clk 0:00:07]}  Bxh2 {[%clk 0:00:44]} 45. c7 {[%clk 0:00:07]}  Bxc7 {[%clk 0:00:45]} 46. Bxc7 {[%clk 0:00:06]}  g4 {[%clk 0:00:46]} 47. c5 {[%clk 0:00:05]}  g3 {[%clk 0:00:47]} 48. Bxg3 {[%clk 0:00:04]}  Kxg3 {[%clk 0:00:47]} 49. c6 {[%clk 0:00:05]}  h5 {[%clk 0:00:48]} 50. c7 {[%clk 0:00:05]}  h4 {[%clk 0:00:49]} 51. c8=Q {[%clk 0:00:04]}  h3 {[%clk 0:00:50]} 52. Qxh3+ {[%clk 0:00:04]}  Kxh3 {[%clk 0:00:50]} 53. a4 {[%clk 0:00:04]}  Kg4 {[%clk 0:00:51]} 54. a5 {[%clk 0:00:04]}  Kf5 {[%clk 0:00:52]} 55. a6 {[%clk 0:00:05]}  Ke6 {[%clk 0:00:53]} 56. a7 {[%clk 0:00:06]}  Kd7 {[%clk 0:00:53]} 57. a8=Q {[%clk 0:00:06]}  Kd6 {[%clk 0:00:54]} 58. Qa5 {[%clk 0:00:06]}  Kc6 {[%clk 0:00:54]} 59. Kd4 {[%clk 0:00:06]}  Kb7 {[%clk 0:00:55]} 60. Kd5 {[%clk 0:00:04]}  Kb8 {[%clk 0:00:56]} 61. Qa6 {[%clk 0:00:03]}  Kc7 {[%clk 0:00:56]} 62. Kc5 {[%clk 0:00:04]}  Kb8 {[%clk 0:00:57]} 63. Kd6 {[%clk 0:00:03]} 1/2-1/2


[Site "https://www.chess.com"]

[Event "Titled Tuesday Blitz November 15 Early 2022"]
[White "Corrales Jimenez, Fidel"]
[Black "Urbina Perez, Juan Antonio"]
[WhiteFideId "3506690"]
[BlackFideId "2217368"]
[WhiteElo "2541"]
[BlackElo "2197"]
[Result "1-0"]
[Round "01"]
[TimeControl "180+1"]
[Date "2022.11.16"]
[WhiteClock "0:00:10"]
[BlackClock "0:00:59"]

1. e4 {[%clk 0:02:13]}  c5 {[%clk 0:02:58]} 2. Nf3 {[%clk 0:02:06]}  d6 {[%clk 0:02:56]} 3. d4 {[%clk 0:02:05]}  cxd4 {[%clk 0:02:57]} 4. Nxd4 {[%clk 0:02:06]}  Nf6 {[%clk 0:02:58]} 5. Nc3 {[%clk 0:02:06]}  Nc6 {[%clk 0:02:58]} 6. Bg5 {[%clk 0:02:01]}  g6 {[%clk 0:02:59]} 7. Bxf6 {[%clk 0:01:58]}  exf6 {[%clk 0:03:00]} 8. Qd2 {[%clk 0:01:45]}  Bg7 {[%clk 0:02:59]} 9. Rd1 {[%clk 0:01:41]}  Nxd4 {[%clk 0:02:45]} 10. Qxd4 {[%clk 0:01:42]}  O-O {[%clk 0:02:45]} 11. Qxd6 {[%clk 0:01:40]}  Qa5 {[%clk 0:02:44]} 12. Bc4 {[%clk 0:01:39]}  Bg4 {[%clk 0:02:34]} 13. Rd5 {[%clk 0:01:33]}  Qd8 {[%clk 0:02:18]} 14. Qxd8 {[%clk 0:00:56]}  Rfxd8 {[%clk 0:02:19]} 15. f3 {[%clk 0:00:42]}  Bd7 {[%clk 0:02:09]} 16. Ke2 {[%clk 0:00:41]}  Bc6 {[%clk 0:02:09]} 17. Rxd8+ {[%clk 0:00:40]}  Rxd8 {[%clk 0:02:10]} 18. Nd5 {[%clk 0:00:38]}  Bxd5 {[%clk 0:02:06]} 19. Bxd5 {[%clk 0:00:38]}  b6 {[%clk 0:02:07]} 20. Rd1 {[%clk 0:00:36]}  Kf8 {[%clk 0:02:06]} 21. c3 {[%clk 0:00:31]}  Ke7 {[%clk 0:02:03]} 22. a4 {[%clk 0:00:30]}  Bh6 {[%clk 0:02:03]} 23. Kd3 {[%clk 0:00:30]}  Bf4 {[%clk 0:02:03]} 24. g3 {[%clk 0:00:29]}  Bc7 {[%clk 0:02:03]} 25. Kc4 {[%clk 0:00:30]}  a6 {[%clk 0:01:56]} 26. b4 {[%clk 0:00:26]}  h5 {[%clk 0:01:52]} 27. Kb3 {[%clk 0:00:25]}  a5 {[%clk 0:01:50]} 28. Kc4 {[%clk 0:00:24]}  g5 {[%clk 0:01:46]} 29. Kb5 {[%clk 0:00:23]}  Rd6 {[%clk 0:01:42]} 30. h3 {[%clk 0:00:19]}  axb4 {[%clk 0:01:36]} 31. cxb4 {[%clk 0:00:18]}  h4 {[%clk 0:01:35]} 32. g4 {[%clk 0:00:19]}  Rd8 {[%clk 0:01:30]} 33. Rc1 {[%clk 0:00:19]}  Bd6 {[%clk 0:01:26]} 34. Rc6 {[%clk 0:00:20]}  Rb8 {[%clk 0:01:24]} 35. Rc4 {[%clk 0:00:16]}  Kd7 {[%clk 0:01:19]} 36. Rc6 {[%clk 0:00:13]}  Rc8 {[%clk 0:01:06]} 37. Rxb6 {[%clk 0:00:11]}  Rc3 {[%clk 0:01:04]} 38. Rb7+ {[%clk 0:00:10]}  Bc7 {[%clk 0:01:04]} 39. a5 {[%clk 0:00:09]}  Rxf3 {[%clk 0:01:03]} 40. a6 {[%clk 0:00:10]}  Ra3 {[%clk 0:01:02]} 41. a7 {[%clk 0:00:10]}  Kd6 {[%clk 0:01:03]} 42. Rxc7 {[%clk 0:00:10]}  Kxc7 {[%clk 0:00:59]} 43. a8=Q {[%clk 0:00:10]} 1-0


[Site "https://www.chess.com"]

[Event "Titled Tuesday Blitz November 15 Early 2022"]
[White "Csonka, Balazs"]
[Black "Gutkin, Ilya"]
[WhiteFideId "742910"]
[BlackFideId "16203470"]
[WhiteElo "2404"]
[BlackElo "2265"]
[Result "1-0"]
[Round "01"]
[TimeControl "180+1"]
[Date "2022.11.16"]
[WhiteClock "0:00:29"]
[BlackClock "0:00:15"]

1. e4 {[%clk 0:02:59]}  e6 {[%clk 0:03:00]} 2. d4 {[%clk 0:02:57]}  d5 {[%clk 0:03:00]} 3. Nd2 {[%clk 0:02:51]}  c5 {[%clk 0:03:00]} 4. Ngf3 {[%clk 0:02:50]}  a6 {[%clk 0:02:51]} 5. c3 {[%clk 0:02:40]}  cxd4 {[%clk 0:02:42]} 6. Nxd4 {[%clk 0:02:34]}  e5 {[%clk 0:02:34]} 7. N4f3 {[%clk 0:02:31]}  dxe4 {[%clk 0:02:33]} 8. Nxe5 {[%clk 0:02:24]}  Nf6 {[%clk 0:01:22]} 9. Bc4 {[%clk 0:01:48]}  Be6 {[%clk 0:01:15]} 10. Bxe6 {[%clk 0:01:39]}  fxe6 {[%clk 0:01:16]} 11. Qb3 {[%clk 0:01:34]}  Qd5 {[%clk 0:01:12]} 12. Ndc4 {[%clk 0:01:16]}  Bc5 {[%clk 0:00:59]} 13. Bf4 {[%clk 0:01:06]}  Nh5 {[%clk 0:00:47]} 14. Rd1 {[%clk 0:00:56]}  Nxf4 {[%clk 0:00:46]} 15. Rxd5 {[%clk 0:00:55]}  exd5 {[%clk 0:00:44]} 16. Nb6 {[%clk 0:00:49]}  O-O {[%clk 0:00:19]} 17. Nxa8 {[%clk 0:00:35]}  Nxg2+ {[%clk 0:00:20]} 18. Kd1 {[%clk 0:00:35]}  Rxf2 {[%clk 0:00:19]} 19. Qxd5+ {[%clk 0:00:34]}  Kh8 {[%clk 0:00:15]} 20. Qxc5 {[%clk 0:00:29]} 1-0


[Site "https://www.chess.com"]

[Event "Titled Tuesday Blitz November 15 Early 2022"]
[White "Dehtiarov, Roman"]
[Black "Todorovic, Bojan"]
[WhiteFideId "14186640"]
[BlackFideId "917087"]
[WhiteElo "2200"]
[BlackElo "2266"]
[Result "0-1"]
[Round "01"]
[TimeControl "180+1"]
[Date "2022.11.16"]
[WhiteClock "0:00:17"]
[BlackClock "0:00:15"]

1. e4 {[%clk 0:03:00]}  c5 {[%clk 0:02:59]} 2. Nc3 {[%clk 0:03:00]}  a6 {[%clk 0:02:58]} 3. f4 {[%clk 0:02:59]}  b5 {[%clk 0:02:58]} 4. Nf3 {[%clk 0:02:58]}  Bb7 {[%clk 0:02:58]} 5. d3 {[%clk 0:02:58]}  e6 {[%clk 0:02:57]} 6. g3 {[%clk 0:02:57]}  Nf6 {[%clk 0:02:58]} 7. Bg2 {[%clk 0:02:58]}  d5 {[%clk 0:02:58]} 8. e5 {[%clk 0:02:58]}  Nfd7 {[%clk 0:02:57]} 9. O-O {[%clk 0:02:57]}  Be7 {[%clk 0:02:57]} 10. d4 {[%clk 0:02:56]}  Nc6 {[%clk 0:02:56]} 11. Be3 {[%clk 0:02:54]}  O-O {[%clk 0:02:55]} 12. Ne2 {[%clk 0:02:54]}  f5 {[%clk 0:02:51]} 13. exf6 {[%clk 0:02:25]}  Nxf6 {[%clk 0:02:46]} 14. Ng5 {[%clk 0:02:24]}  Qd6 {[%clk 0:02:43]} 15. dxc5 {[%clk 0:02:15]}  Qd7 {[%clk 0:02:39]} 16. Bh3 {[%clk 0:02:15]}  Nd8 {[%clk 0:02:39]} 17. Nd4 {[%clk 0:02:10]}  Bxc5 {[%clk 0:02:35]} 18. Qe2 {[%clk 0:01:57]}  Re8 {[%clk 0:02:32]} 19. Rfe1 {[%clk 0:01:37]}  Qd6 {[%clk 0:02:24]} 20. Ngxe6 {[%clk 0:00:50]}  Nxe6 {[%clk 0:02:20]} 21. Bxe6+ {[%clk 0:00:41]}  Kh8 {[%clk 0:02:18]} 22. f5 {[%clk 0:00:40]}  Ne4 {[%clk 0:02:05]} 23. c3 {[%clk 0:00:36]}  Bc8 {[%clk 0:01:55]} 24. Qg4 {[%clk 0:00:21]}  Nf6 {[%clk 0:01:42]} 25. Bf4 {[%clk 0:00:17]}  Qb6 {[%clk 0:01:41]} 26. Qd1 {[%clk 0:00:15]}  Bxe6 {[%clk 0:01:39]} 27. fxe6 {[%clk 0:00:15]}  Rxe6 {[%clk 0:01:39]} 28. Rxe6 {[%clk 0:00:14]}  Qxe6 {[%clk 0:01:39]} 29. Qd3 {[%clk 0:00:08]}  Ne4 {[%clk 0:01:38]} 30. Re1 {[%clk 0:00:07]}  Rf8 {[%clk 0:01:32]} 31. Kg2 {[%clk 0:00:04]}  Qf6 {[%clk 0:01:25]} 32. Nf3 {[%clk 0:00:03]}  Rd8 {[%clk 0:01:17]} 33. Be5 {[%clk 0:00:02]}  Qe7 {[%clk 0:01:12]} 34. Bd4 {[%clk 0:00:03]}  Bd6 {[%clk 0:01:10]} 35. Be3 {[%clk 0:00:02]}  h6 {[%clk 0:01:04]} 36. Bd2 {[%clk 0:00:02]}  Qf7 {[%clk 0:00:58]} 37. Be3 {[%clk 0:00:02]}  Rf8 {[%clk 0:00:57]} 38. Bd4 {[%clk 0:00:02]}  Bc5 {[%clk 0:00:51]} 39. Qe3 {[%clk 0:00:01]}  Bxd4 {[%clk 0:00:50]} 40. cxd4 {[%clk 0:00:02]}  Rc8 {[%clk 0:00:46]} 41. Rc1 {[%clk 0:00:03]}  Qd7 {[%clk 0:00:36]} 42. Ne5 {[%clk 0:00:02]}  Qf5 {[%clk 0:00:37]} 43. Rxc8+ {[%clk 0:00:02]}  Qxc8 {[%clk 0:00:37]} 44. Qf4 {[%clk 0:00:02]}  Qc2+ {[%clk 0:00:35]} 45. Kh3 {[%clk 0:00:02]}  Nf2+ {[%clk 0:00:34]} 46. Kg2 {[%clk 0:00:03]}  Ng4+ {[%clk 0:00:19]} 47. Kh3 {[%clk 0:00:01]}  Nf2+ {[%clk 0:00:17]} 48. Kg2 {[%clk 0:00:02]}  Nd3+ {[%clk 0:00:17]} 49. Kf3 {[%clk 0:00:02]}  Nxf4 {[%clk 0:00:17]} 50. Kxf4 {[%clk 0:00:03]}  Qxb2 {[%clk 0:00:17]} 51. Kf5 {[%clk 0:00:02]}  Qxd4 {[%clk 0:00:17]} 52. Ke6 {[%clk 0:00:03]}  Qa4 {[%clk 0:00:15]} 53. Kxd5 {[%clk 0:00:03]}  Qxa2+ {[%clk 0:00:15]} 54. Ke4 {[%clk 0:00:04]}  Qe6 {[%clk 0:00:14]} 55. Kf4 {[%clk 0:00:04]}  Qxe5+ {[%clk 0:00:14]} 56. Kxe5 {[%clk 0:00:04]}  b4 {[%clk 0:00:15]} 57. Kd4 {[%clk 0:00:05]}  a5 {[%clk 0:00:15]} 58. Kd3 {[%clk 0:00:05]}  Kh7 {[%clk 0:00:15]} 59. h4 {[%clk 0:00:06]}  Kg6 {[%clk 0:00:15]} 60. g4 {[%clk 0:00:06]}  Kf6 {[%clk 0:00:16]} 61. Ke4 {[%clk 0:00:07]}  b3 {[%clk 0:00:15]} 62. Kd3 {[%clk 0:00:07]}  a4 {[%clk 0:00:16]} 63. Kc3 {[%clk 0:00:07]}  Ke5 {[%clk 0:00:16]} 64. Kd3 {[%clk 0:00:07]}  Kf4 {[%clk 0:00:16]} 65. g5 {[%clk 0:00:08]}  hxg5 {[%clk 0:00:16]} 66. hxg5 {[%clk 0:00:09]}  Kxg5 {[%clk 0:00:16]} 67. Kc3 {[%clk 0:00:10]}  Kf5 {[%clk 0:00:16]} 68. Kb2 {[%clk 0:00:10]}  g5 {[%clk 0:00:17]} 69. Ka3 {[%clk 0:00:11]}  g4 {[%clk 0:00:17]} 70. Kb2 {[%clk 0:00:12]}  g3 {[%clk 0:00:17]} 71. Ka3 {[%clk 0:00:13]}  g2 {[%clk 0:00:18]} 72. Kb2 {[%clk 0:00:14]}  g1=Q {[%clk 0:00:18]} 73. Ka3 {[%clk 0:00:15]}  b2 {[%clk 0:00:16]} 74. Kb4 {[%clk 0:00:16]}  b1=Q+ {[%clk 0:00:16]} 75. Ka5 {[%clk 0:00:17]}  Qa7# {[%clk 0:00:15]} 0-1


[Site "https://www.chess.com"]